[Event "94th Paris-ch  2019"]
[Site "Paris"]
[Date "2019.07.07"]
[Round "1.8"]
[White "Bharath Subramaniyam H"]
[Black "Jeet, Jain"]
[Result "1-0"]
[ECO "C77"]
[WhiteElo "2405"]
[BlackElo "2258"]
[Annotator "NA"]
[PlyCount "162"]
[EventDate "2019.07.07"]
[EventType "swiss"]
[EventCountry "FRA"]
[SourceTitle "playchess.com"]
[Source "ChessBase"]
[SourceQuality "1"]
[TimeControl "5400+30"]

1. e4 {[%emt 0:00:00]} e5 {[%emt 0:00:00]} 2. Nf3 {[%emt 0:00:12]} Nc6 {[%emt 0:00:19]} 3. Bb5 {[%emt 0:00:13]} a6 {[%emt 0:00:09]} 4. Ba4 {[%emt 0:00:10]} Nf6 {[%emt 0:00:18]} 5. Qe2 {[%emt 0:00:21]} b5 {[%emt 0:01:40]} 6. Bb3 {[%emt 0:00:06]} Bc5 {[%emt 0:00:24]} 7. d3 {[%emt 0:01:52]} d6 {[%emt 0:01:04]} 8. c3 {[%emt 0:01:23]} h6 {[%emt 0:01:51]} 9. h3 {[%emt 0:06:14]} Bb6 {[%emt 0:00:48]} 10. Nbd2 {[%emt 0:03:08]} Na5 {[%emt 0:05:50]} 11. Bc2 {[%emt 0:03:52]} c5 {[%emt 0:01:11]} 12. Nf1 {[%emt 0:05:47]} Nc6 {[%emt 0:04:53]} 13. Ng3 {[%emt 0:06:29]} Be6 {[%emt 0:10:20]} 14. O-O {[%emt 0:02:08]} Ne7 {[%emt 0:04:41]} 15. Rd1 {[%emt 0:02:32]} Ng6 {[%emt 0:04:53]} 16. d4 {[%emt 0:10:33]} Qc7 {[%emt 0:04:32]} 17. Nf5 {[%emt 0:06:36]} O-O {[%emt 0:06:33]} 18. Nxd6 {[%emt 0:03:41]} cxd4 {[%emt 0:03:30]} 19. cxd4 {[%emt 0:01:03]} exd4 {[%emt 0:00:44]} 20. e5 {[%emt 0:10:39]} Nxe5 {[%emt 0:02:24]} 21. Qxe5 {[%emt 0:02:47]} Qxc2 {[%emt 0:00:09]} 22. Bxh6 {[%emt 0:00:40]} Qg6 {[%emt 0:03:07]} 23. Bg5 {[%emt 0:00:55]} Nd7 {[%emt 0:10:33]} 24. Qg3 {[%emt 0:01:26]} Bc5 {[%emt 0:11:34]} 25. Bf4 {[%emt 0:07:04]} Nb6 {[%emt 0:01:24]} 26. Nxd4 {[%emt 0:02:10]} Qxg3 {[%emt 0:02:15]} 27. Bxg3 {[%emt 0:00:11]} Bxd4 {[%emt 0:00:16]} 28. Rxd4 {[%emt 0:00:02]} Nc4 {[%emt 0:00:09]} 29. b3 {[%emt 0:01:27]} Nxd6 {[%emt 0:00:07]} 30. Rxd6 {[%emt 0:00:10]} a5 {[%emt 0:02:53]} 31. Rb6 {[%emt 0:01:05]} a4 {[%emt 0:00:45]} 32. Rb1 {[%emt 0:00:08]} axb3 {[%emt 0:04:06]} 33. axb3 {[%emt 0:00:33]} Bf5 {[%emt 0:01:14]} 34. Rc1 {[%emt 0:01:07]} Bd3 {[%emt 0:01:36]} 35. Rc3 {[%emt 0:03:57]} Rfd8 {[%emt 0:00:43]} 36. Kh2 {[%emt 0:03:41]} Rac8 {[%emt 0:00:58]} 37. Rbc6 {[%emt 0:04:55]} Rxc6 {[%emt 0:00:24]} 38. Rxc6 {[%emt 0:00:01]} Be4 {[%emt 0:01:47]} 39. Rb6 {[%emt 0:00:38]} Rd5 {[%emt 0:00:31]} 40. Rb8+ {[%emt 0:00:49]} Kh7 {[%emt 0:00:04]} 41. Rb7 {[%emt 0:01:30]} Kg8 {[%emt 0:00:10]} 42. Rb6 {[%emt 0:00:37]} Bc2 {[%emt 0:00:14]} 43. b4 {[%emt 0:00:01]} Bb3 {[%emt 0:01:08]} 44. Bd6 {[%emt 0:00:16]} Bc4 {[%emt 0:00:11]} 45. Bc5 {[%emt 0:00:06]} Rd3 {[%emt 0:00:18]} 46. h4 {[%emt 0:00:28]} Kh7 {[%emt 0:00:37]} 47. h5 {[%emt 0:03:08]} Rd5 {[%emt 0:03:28]} 48. g4 {[%emt 0:00:02]} Be2 {[%emt 0:00:49]} 49. Kg3 {[%emt 0:00:20]} Rd3+ {[%emt 0:00:58]} 50. Be3 {[%emt 0:00:01]} Rd1 {[%emt 0:01:43]} 51. f3 {[%emt 0:02:04]} Rb1 {[%emt 0:01:13]} 52. g5 {[%emt 0:00:07]} Bd3 {[%emt 0:01:15]} 53. g6+ {[%emt 0:03:15]} fxg6 {[%emt 0:00:07]} 54. hxg6+ {[%emt 0:00:02]} Bxg6 {[%emt 0:00:07]} 55. Rxb5 {[%emt 0:00:05]} Rb3 {[%emt 0:01:48]} 56. Kf4 {[%emt 0:00:01]} Bd3 {[%emt 0:00:59]} 57. Rb7 {[%emt 0:00:31]} Be2 {[%emt 0:01:49]} 58. Ke4 {[%emt 0:00:14]} Kg8 {[%emt 0:00:42]} 59. f4 {[%emt 0:00:33]} g6 {[%emt 0:00:23]} 60. Rb6 {[%emt 0:00:29]} Kf7 {[%emt 0:00:14]} 61. Bd4 {[%emt 0:00:28]} Bd3+ {[%emt 0:00:19]} 62. Kd5 {[%emt 0:00:27]} Rb1 {[%emt 0:00:15]} 63. Rb7+ {[%emt 0:01:07]} Ke8 {[%emt 0:00:25]} 64. Ke6 {[%emt 0:01:51]} Bf5+ {[%emt 0:00:24]} 65. Kd6 {[%emt 0:00:15]} Bd3 {[%emt 0:00:07]} 66. Be3 {[%emt 0:01:33]} Re1 {[%emt 0:01:10]} 67. Re7+ {[%emt 0:00:29]} Kf8 {[%emt 0:00:02]} 68. Re5 {[%emt 0:01:52]} Rb1 {[%emt 0:00:22]} 69. Kc6 {[%emt 0:00:13]} Kf7 {[%emt 0:01:28]} 70. b5 {[%emt 0:00:04]} Be2 {[%emt 0:00:37]} 71. b6 {[%emt 0:00:14]} Bf3+ {[%emt 0:00:20]} 72. Kd6 {[%emt 0:00:42]} Rb4 {[%emt 0:00:15]} 73. Kc7 {[%emt 0:01:04]} Kf6 {[%emt 0:00:24]} 74. Rc5 {[%emt 0:00:50]} Re4 {[%emt 0:00:33]} 75. Rc6+ {[%emt 0:00:48]} Kf5 {[%emt 0:00:11]} 76. b7 {[%emt 0:00:26]} Re7+ {[%emt 0:00:26]} 77. Kb6 {[%emt 0:00:08]} Bxc6 {[%emt 0:01:23]} 78. b8=Q {[%emt 0:00:06]} Rb7+ {[%emt 0:00:52]} 79. Qxb7 {[%emt 0:00:02]} Bxb7 {[%emt 0:00:04]} 80. Kxb7 {[%emt 0:00:07]} Ke4 {[%emt 0:00:15]} 81. Bc1 {[%emt 0:00:45]} Kd5 {[%emt 0:00:00]} 1-0

[Event "94th Paris-ch  2019"]
[Site "Paris"]
[Date "2019.07.07"]
[Round "1.9"]
[White "Ojas Kulkarni"]
[Black "Akshat, Khamparia"]
[Result "1/2-1/2"]
[ECO "E72"]
[WhiteElo "2251"]
[BlackElo "2398"]
[Annotator "NA"]
[PlyCount "30"]
[EventDate "2019.07.07"]
[EventType "swiss"]
[EventCountry "FRA"]
[SourceTitle "playchess.com"]
[Source "ChessBase"]
[SourceQuality "1"]
[TimeControl "5400+30"]

1. c4 {[%emt 0:00:00]} d6 {[%emt 0:00:45]} 2. g3 {[%emt 0:00:00]} g6 {[%emt 0:00:27]} 3. Bg2 {[%emt 0:00:04]} Bg7 {[%emt 0:00:07]} 4. Nc3 {[%emt 0:00:06]} Nf6 {[%emt 0:00:36]} 5. e4 {[%emt 0:00:11]} O-O {[%emt 0:00:56]} 6. Nge2 {[%emt 0:00:07]} c6 {[%emt 0:03:23]} 7. O-O {[%emt 0:00:23]} a6 {[%emt 0:07:22]} 8. d4 {[%emt 0:15:38]} Nfd7 {[%emt 0:04:51]} 9. Be3 {[%emt 0:20:03]} b5 {[%emt 0:03:28]} 10. c5 {[%emt 0:00:55]} a5 {[%emt 0:01:59]} 11. cxd6 {[%emt 0:05:19]} exd6 {[%emt 0:00:20]} 12. e5 {[%emt 0:10:59]} b4 {[%emt 0:03:07]} 13. Ne4 {[%emt 0:00:35]} dxe5 {[%emt 0:02:57]} 14. dxe5 {[%emt 0:00:30]} Ba6 {[%emt 0:03:27]} 15. f4 {[%emt 0:03:35]} Nxe5 {[%emt 0:02:12]} 1/2-1/2

[Event "94th Paris-ch  2019"]
[Site "Paris"]
[Date "2019.07.07"]
[Round "1.10"]
[White "Verstraeten, Rein"]
[Black "Hingouet, Matthieu"]
[Result "1-0"]
[ECO "E04"]
[WhiteElo "2376"]
[BlackElo "2245"]
[Annotator "NA"]
[PlyCount "137"]
[EventDate "2019.07.07"]
[EventType "swiss"]
[EventCountry "FRA"]
[SourceTitle "playchess.com"]
[Source "ChessBase"]
[SourceQuality "1"]
[TimeControl "5400+30"]

1. d4 {[%emt 0:00:00]} Nf6 {[%emt 0:00:00]} 2. c4 {[%emt 0:00:00]} e6 {[%emt 0:00:00]} 3. Nf3 {[%emt 0:00:00]} d5 {[%emt 0:00:16]} 4. g3 {[%emt 0:00:01]} dxc4 {[%emt 0:00:50]} 5. Bg2 {[%emt 0:00:06]} c5 {[%emt 0:00:12]} 6. O-O {[%emt 0:00:45]} Nc6 {[%emt 0:01:03]} 7. dxc5 {[%emt 0:00:16]} Qxd1 {[%emt 0:01:53]} 8. Rxd1 {[%emt 0:00:10]} Bxc5 {[%emt 0:00:06]} 9. Nbd2 {[%emt 0:00:07]} c3 {[%emt 0:00:14]} 10. bxc3 {[%emt 0:00:05]} O-O {[%emt 0:01:28]} 11. Nb3 {[%emt 0:00:09]} Be7 {[%emt 0:01:20]} 12. Nfd4 {[%emt 0:09:24]} Bd7 {[%emt 0:06:20]} 13. Nxc6 {[%emt 0:02:47]} Bxc6 {[%emt 0:00:39]} 14. Bxc6 {[%emt 0:00:08]} bxc6 {[%emt 0:00:04]} 15. c4 {[%emt 0:00:14]} Ne4 {[%emt 0:10:29]} 16. Bb2 {[%emt 0:02:38]} a5 {[%emt 0:10:37]} 17. f3 {[%emt 0:15:16]} Nc5 {[%emt 0:11:42]} 18. Be5 {[%emt 0:20:26]} Nxb3 {[%emt 0:17:14]} 19. axb3 {[%emt 0:00:08]} Bf6 {[%emt 0:00:47]} 20. Bxf6 {[%emt 0:03:01]} gxf6 {[%emt 0:00:02]} 21. Kf2 {[%emt 0:02:16]} Rfb8 {[%emt 0:01:42]} 22. Rd3 {[%emt 0:00:52]} Rb4 {[%emt 0:04:50]} 23. Ra3 {[%emt 0:01:10]} a4 {[%emt 0:03:24]} 24. Ke3 {[%emt 0:02:22]} c5 {[%emt 0:03:54]} 25. g4 {[%emt 0:14:12]} Kg7 {[%emt 0:03:23]} 26. h4 {[%emt 0:01:01]} h6 {[%emt 0:07:04]} 27. h5 {[%emt 0:06:05]} Ra7 {[%emt 0:00:03]} 28. Rxa4 {[%emt 0:02:40]} Raxa4 {[%emt 0:00:42]} 29. bxa4 {[%emt 0:00:05]} Rxa4 {[%emt 0:00:05]} 30. Rc3 {[%emt 0:00:08]} f5 {[%emt 0:05:23]} 31. gxf5 {[%emt 0:00:09]} exf5 {[%emt 0:00:10]} 32. Kd3 {[%emt 0:01:57]} Ra1 {[%emt 0:02:12]} 33. Rb3 {[%emt 0:01:21]} Rd1+ {[%emt 0:00:19]} 34. Kc3 {[%emt 0:00:47]} Rd6 {[%emt 0:03:41]} 35. Rb5 {[%emt 0:00:10]} Rc6 {[%emt 0:00:01]} 36. f4 {[%emt 0:00:23]} Kf6 {[%emt 0:00:37]} 37. e3 {[%emt 0:00:20]} Ke7 {[%emt 0:02:10]} 38. Rb7+ {[%emt 0:00:19]} Ke6 {[%emt 0:00:15]} 39. Rb8 {[%emt 0:00:14]} Ke7 {[%emt 0:00:10]} 40. Rb7+ {[%emt 0:05:37]} Ke6 {[%emt 0:00:11]} 41. Kb3 {[%emt 0:01:16]} Rd6 {[%emt 0:01:53]} 42. Kc2 {[%emt 0:04:00]} Rc6 {[%emt 0:00:41]} 43. Kc3 {[%emt 0:00:04]} Kf6 {[%emt 0:01:06]} 44. Rd7 {[%emt 0:00:00]} Ke6 {[%emt 0:00:49]} 45. Rd8 {[%emt 0:00:00]} Ke7 {[%emt 0:00:35]} 46. Rd5 {[%emt 0:00:00]} Kf6 {[%emt 0:00:11]} 47. Re5 {[%emt 0:00:00]} Rc7 {[%emt 0:01:21]} 48. Kb3 {[%emt 0:01:11]} Rb7+ {[%emt 0:00:00]} 49. Kc2 {[%emt 0:00:07]} Rc7 {[%emt 0:00:13]} 50. Kd3 {[%emt 0:00:04]} Rc6 {[%emt 0:01:05]} 51. Ke2 {[%emt 0:00:20]} Rc7 {[%emt 0:00:19]} 52. Kf2 {[%emt 0:00:51]} Rc8 {[%emt 0:00:27]} 53. Kf3 {[%emt 0:00:43]} Rc6 {[%emt 0:00:08]} 54. Re8 {[%emt 0:01:34]} Rc7 {[%emt 0:00:27]} 55. Rh8 {[%emt 0:00:56]} Kg7 {[%emt 0:00:08]} 56. Rd8 {[%emt 0:00:03]} Rc6 {[%emt 0:00:55]} 57. Rd5 {[%emt 0:00:08]} Kf6 {[%emt 0:00:04]} 58. Re5 {[%emt 0:00:03]} Rc8 {[%emt 0:01:20]} 59. e4 {[%emt 0:00:08]} fxe4+ {[%emt 0:00:25]} 60. Kxe4 {[%emt 0:00:05]} Rc6 {[%emt 0:00:43]} 61. Kd5 {[%emt 0:00:26]} Rc8 {[%emt 0:00:01]} 62. Kd6 {[%emt 0:00:47]} Rd8+ {[%emt 0:00:31]} 63. Kxc5 {[%emt 0:00:10]} Rd1 {[%emt 0:00:06]} 64. Rd5 {[%emt 0:01:29]} Rf1 {[%emt 0:00:15]} 65. Kd6 {[%emt 0:00:26]} Rxf4 {[%emt 0:00:34]} 66. c5 {[%emt 0:00:05]} Re4 {[%emt 0:01:22]} 67. c6 {[%emt 0:00:15]} Re6+ {[%emt 0:00:16]} 68. Kd7 {[%emt 0:00:06]} Re7+ {[%emt 0:00:14]} 69. Kd8 {[%emt 0:00:12]} 1-0

[Event "94th Paris-ch  2019"]
[Site "Paris"]
[Date "2019.07.07"]
[Round "1.11"]
[White "Le Quang, Kim"]
[Black "Anand Nadar"]
[Result "1-0"]
[ECO "A25"]
[WhiteElo "2243"]
[BlackElo "2358"]
[Annotator "NA"]
[PlyCount "119"]
[EventDate "2019.07.07"]
[EventType "swiss"]
[EventCountry "FRA"]
[SourceTitle "playchess.com"]
[Source "ChessBase"]
[SourceQuality "1"]
[TimeControl "5400+30"]

1. c4 {[%emt 0:00:00]} e5 {[%emt 0:01:22]} 2. g3 {[%emt 0:00:00]} Nc6 {[%emt 0:00:14]} 3. Nc3 {[%emt 0:00:00]} Bc5 {[%emt 0:00:14]} 4. Bg2 {[%emt 0:00:06]} d6 {[%emt 0:00:09]} 5. e3 {[%emt 0:02:11]} a6 {[%emt 0:00:08]} 6. Nge2 {[%emt 0:00:26]} Ba7 {[%emt 0:00:07]} 7. b3 {[%emt 0:03:01]} h5 {[%emt 0:00:20]} 8. h4 {[%emt 0:03:59]} Bg4 {[%emt 0:11:12]} 9. Bb2 {[%emt 0:01:35]} Qd7 {[%emt 0:01:42]} 10. d3 {[%emt 0:01:42]} Nf6 {[%emt 0:04:20]} 11. Qd2 {[%emt 0:00:45]} O-O-O {[%emt 0:06:00]} 12. O-O-O {[%emt 0:08:51]} Kb8 {[%emt 0:02:22]} 13. Kb1 {[%emt 0:03:34]} Ne7 {[%emt 0:09:00]} 14. f3 {[%emt 0:10:38]} Bf5 {[%emt 0:16:10]} 15. e4 {[%emt 0:00:52]} Bh7 {[%emt 0:00:14]} 16. Bh3 {[%emt 0:17:10]} Qe8 {[%emt 0:01:09]} 17. Ka1 {[%emt 0:00:12]} Nd7 {[%emt 0:01:48]} 18. d4 {[%emt 0:01:30]} f5 {[%emt 0:01:59]} 19. Rhe1 {[%emt 0:16:28]} Qf7 {[%emt 0:09:31]} 20. Rf1 {[%emt 0:00:58]} Nc6 {[%emt 0:03:14]} 21. dxe5 {[%emt 0:03:18]} Ndxe5 {[%emt 0:02:51]} 22. Nd5 {[%emt 0:07:09]} Rhe8 {[%emt 0:13:16]} 23. Qg5 {[%emt 0:01:36]} fxe4 {[%emt 0:01:17]} 24. fxe4 {[%emt 0:00:09]} Qg8 {[%emt 0:00:04]} 25. Nef4 {[%emt 0:03:54]} Bxe4 {[%emt 0:02:08]} 26. Qxh5 {[%emt 0:00:26]} a5 {[%emt 0:04:19]} 27. Qe2 {[%emt 0:03:19]} Bh7 {[%emt 0:01:33]} 28. Qd2 {[%emt 0:00:14]} a4 {[%emt 0:00:30]} 29. h5 {[%emt 0:00:34]} axb3 {[%emt 0:01:27]} 30. axb3 {[%emt 0:00:05]} Nd7 {[%emt 0:01:55]} 31. Bxd7 {[%emt 0:02:25]} Rxd7 {[%emt 0:00:02]} 32. h6 {[%emt 0:00:13]} Ne5 {[%emt 0:03:17]} 33. hxg7 {[%emt 0:01:07]} Qxg7 {[%emt 0:01:56]} 34. Nh5 {[%emt 0:00:10]} Qg6 {[%emt 0:00:08]} 35. Nhf6 {[%emt 0:00:22]} Rdd8 {[%emt 0:00:06]} 36. Nxe8 {[%emt 0:00:25]} Rxe8 {[%emt 0:00:21]} 37. Nf6 {[%emt 0:02:49]} Rc8 {[%emt 0:00:43]} 38. Ka2 {[%emt 0:01:49]} Ng4 {[%emt 0:01:19]} 39. Nxh7 {[%emt 0:02:30]} Qxh7 {[%emt 0:00:01]} 40. Rde1 {[%emt 0:00:12]} Bb6 {[%emt 0:00:38]} 41. Qf4 {[%emt 0:00:39]} Rg8 {[%emt 0:00:05]} 42. Qf7 {[%emt 0:00:39]} Qxf7 {[%emt 0:01:01]} 43. Rxf7 {[%emt 0:00:03]} Ne5 {[%emt 0:00:10]} 44. Bxe5 {[%emt 0:00:19]} dxe5 {[%emt 0:00:01]} 45. Rxe5 {[%emt 0:00:49]} Rxg3 {[%emt 0:00:05]} 46. c5 {[%emt 0:00:52]} Ba5 {[%emt 0:00:29]} 47. Re4 {[%emt 0:00:41]} Rg2+ {[%emt 0:01:46]} 48. Ka3 {[%emt 0:01:22]} Rg3 {[%emt 0:00:33]} 49. Ka4 {[%emt 0:01:38]} Bc3 {[%emt 0:00:38]} 50. Re8+ {[%emt 0:00:07]} Ka7 {[%emt 0:00:01]} 51. Rxc7 {[%emt 0:00:39]} Rg4+ {[%emt 0:00:45]} 52. Ka3 {[%emt 0:00:04]} Rg1 {[%emt 0:00:47]} 53. b4 {[%emt 0:00:36]} Rg3 {[%emt 0:00:27]} 54. Ka2 {[%emt 0:00:37]} Rg2+ {[%emt 0:00:30]} 55. Kb3 {[%emt 0:00:10]} Rg3 {[%emt 0:00:04]} 56. Kc4 {[%emt 0:00:10]} Bd2 {[%emt 0:00:11]} 57. Ree7 {[%emt 0:00:39]} Rg4+ {[%emt 0:00:12]} 58. Kd3 {[%emt 0:00:11]} Bxb4 {[%emt 0:00:07]} 59. Rxb7+ {[%emt 0:00:16]} Ka6 {[%emt 0:00:06]} 60. Rb6+ {[%emt 0:00:09]} 1-0

[Event "94th Paris-ch  2019"]
[Site "Paris"]
[Date "2019.07.07"]
[Round "1.12"]
[White "Stephan, Victor"]
[Black "Chalmeta Ugas, Ramon"]
[Result "0-1"]
[ECO "D85"]
[WhiteElo "2358"]
[BlackElo "2232"]
[Annotator "NA"]
[PlyCount "147"]
[EventDate "2019.07.07"]
[EventType "swiss"]
[EventCountry "FRA"]
[SourceTitle "playchess.com"]
[Source "ChessBase"]
[SourceQuality "1"]
[TimeControl "5400+30"]

1. d4 {[%emt 0:11:17]} Nf6 {[%emt 0:00:00]} 2. c4 {[%emt 0:00:09]} g6 {[%emt 0:00:00]} 3. Nc3 {[%emt 0:00:00]} d5 4. Nf3 {[%emt 0:00:31]} Bg7 {[%emt 0:00:08]} 5. cxd5 {[%emt 0:00:09]} Nxd5 {[%emt 0:00:11]} 6. e4 {[%emt 0:00:14]} Nxc3 {[%emt 0:00:13]} 7. bxc3 {[%emt 0:00:12]} c5 {[%emt 0:00:15]} 8. h3 {[%emt 0:03:28]} Nc6 {[%emt 0:00:13]} 9. Be3 {[%emt 0:03:10]} Qa5 {[%emt 0:06:30]} 10. Bd2 {[%emt 0:03:51]} O-O {[%emt 0:00:18]} 11. Be2 {[%emt 0:03:49]} Qc7 {[%emt 0:00:23]} 12. Rc1 {[%emt 0:02:29]} b6 {[%emt 0:02:12]} 13. O-O {[%emt 0:00:00]} Bb7 14. d5 {[%emt 0:05:28]} Ne5 {[%emt 0:00:54]} 15. Nxe5 {[%emt 0:00:44]} Qxe5 {[%emt 0:04:58]} 16. Bd3 {[%emt 0:12:06]} c4 {[%emt 0:06:12]} 17. Bb1 {[%emt 0:06:32]} f5 {[%emt 0:12:18]} 18. Re1 {[%emt 0:07:02]} fxe4 {[%emt 0:00:09]} 19. Bxe4 {[%emt 0:04:59]} Qd6 {[%emt 0:01:16]} 20. Bg5 {[%emt 0:04:49]} b5 {[%emt 0:03:30]} 21. Qg4 {[%emt 0:05:19]} Rae8 {[%emt 0:06:44]} 22. Qg3 {[%emt 0:03:55]} Be5 {[%emt 0:01:01]} 23. Qe3 {[%emt 0:02:28]} a6 {[%emt 0:03:31]} 24. g3 {[%emt 0:03:50]} Bg7 {[%emt 0:02:15]} 25. Bg2 {[%emt 0:02:45]} Bf6 {[%emt 0:01:05]} 26. Bh6 {[%emt 0:00:10]} Bg7 {[%emt 0:27:31]} 27. Bf4 Qd7 {[%emt 0:02:56]} 28. Qc5 {[%emt 0:01:44]} Rf5 {[%emt 0:02:48]} 29. Be4 {[%emt 0:06:56]} Rf7 {[%emt 0:03:42]} 30. Qc7 {[%emt 0:00:33]} e5 {[%emt 0:03:27]} 31. Qxd7 {[%emt 0:01:11]} Rxd7 {[%emt 0:00:00]} 32. Bg5 {[%emt 0:02:54]} Bxd5 {[%emt 0:01:52]} 33. Rcd1 {[%emt 0:00:00]} Be6 {[%emt 0:01:16]} 34. Rxd7 {[%emt 0:00:00]} Bxd7 {[%emt 0:01:02]} 35. g4 {[%emt 0:00:00]} Bf8 {[%emt 0:01:30]} 36. Rd1 {[%emt 0:00:00]} Be6 {[%emt 0:01:26]} 37. Bd8 {[%emt 0:00:00]} Bf7 {[%emt 0:01:03]} 38. Ba5 {[%emt 0:00:00]} Bc5 {[%emt 0:01:59]} 39. Bb7 {[%emt 0:00:00]} Rb8 {[%emt 0:02:21]} 40. Bxa6 {[%emt 0:00:00]} Ra8 {[%emt 0:00:12]} 41. Rd8+ {[%emt 0:00:00]} Rxd8 {[%emt 0:00:05]} 42. Bxd8 {[%emt 0:00:00]} b4 {[%emt 0:00:10]} 43. cxb4 {[%emt 0:00:00]} Bxb4 {[%emt 0:00:01]} 44. Bf6 {[%emt 0:00:00]} c3 {[%emt 0:01:30]} 45. Bxe5 {[%emt 0:00:00]} Bxa2 {[%emt 0:00:59]} 46. Bf4 {[%emt 0:00:00]} Ba3 {[%emt 0:00:17]} 47. Bd3 {[%emt 0:00:11]} Bb3 {[%emt 0:00:10]} 48. h4 {[%emt 0:01:04]} c2 {[%emt 0:00:28]} 49. h5 {[%emt 0:00:09]} Kf7 {[%emt 0:01:17]} 50. Kg2 {[%emt 0:01:03]} c1=Q {[%emt 0:00:09]} 51. Bxc1 {[%emt 0:00:06]} Bxc1 {[%emt 0:00:01]} 52. Kg3 {[%emt 0:00:32]} Kg7 {[%emt 0:01:03]} 53. hxg6 {[%emt 0:00:35]} hxg6 {[%emt 0:00:02]} 54. f4 {[%emt 0:00:07]} Ba4 {[%emt 0:00:15]} 55. Be4 {[%emt 0:00:05]} Bd7 {[%emt 0:00:12]} 56. Kf3 {[%emt 0:00:16]} Bd2 {[%emt 0:00:05]} 57. Bd5 {[%emt 0:00:49]} Kf6 {[%emt 0:00:07]} 58. Be4 {[%emt 0:00:06]} Be8 {[%emt 0:00:41]} 59. Kg3 {[%emt 0:00:14]} Ke7 {[%emt 0:00:29]} 60. Kf3 {[%emt 0:00:25]} Kd6 {[%emt 0:00:17]} 61. Kg3 {[%emt 0:00:41]} Be1+ {[%emt 0:00:45]} 62. Kh3 {[%emt 0:01:37]} Kc5 {[%emt 0:00:46]} 63. Bb1 {[%emt 0:01:43]} Kd4 {[%emt 0:04:35]} 64. g5 {[%emt 0:02:44]} Ke3 {[%emt 0:00:15]} 65. Kg4 {[%emt 0:00:46]} Bd7+ {[%emt 0:00:00]} 66. f5 {[%emt 0:01:01]} Bb4 {[%emt 0:00:00]} 67. Bc2 {[%emt 0:00:51]} Kd4 {[%emt 0:00:00]} 68. Kf3 {[%emt 0:00:40]} gxf5 {[%emt 0:01:54]} 69. g6 {[%emt 0:00:54]} Bf8 {[%emt 0:00:19]} 70. Kf4 {[%emt 0:00:00]} Bh6+ {[%emt 0:00:09]} 71. Kg3 {[%emt 0:00:05]} Ke5 {[%emt 0:00:09]} 72. Kh4 {[%emt 0:00:00]} Kf6 {[%emt 0:00:00]} 73. Kh5 {[%emt 0:00:20]} Bg7 {[%emt 0:00:00]} 74. Kh4 {[%emt 0:01:05]} 0-1